fUST/lending_fUST_20250426
["ID","MTS","AMOUNT","RATE_DAILY","PERIOD"]
[359009522,1745628637878,-377.84531135,0.000148,2]
[359009523,1745628637894,-122.15468865,0.000148,2]
[359009524,1745628637904,-500.0,0.000148,2]
[359009525,1745628637914,-10699.89344141,0.000148,2]
[359009526,1745628637924,-420.0,0.00015822,2]
[359009527,1745628637935,-1120.26346924,0.000159,2]
[359009528,1745628637947,-420.04270177,0.000159,2]
[359009530,1745628637957,-153.0,0.00015978,2]
[359009531,1745628637966,-153.0,0.00015978,2]
[359009534,1745628637977,-160.0,0.00015987,2]
[359009535,1745628637987,-160.0,0.00016028,2]
[359009537,1745628637996,-420.98395174,0.00016028,2]
[359009539,1745628638006,-160.0,0.00016028,2]
[359009542,1745628638016,-313.10658385,0.00016028,2]
[359009543,1745628638025,-160.0,0.00016028,2]
[359009545,1745628638035,-160.0,0.00016028,2]
[359009548,1745628638045,-160.0,0.00016028,2]
[359009550,1745628638055,-840.21051354,0.00016028,2]
[359009552,1745628638064,-12579.26882624,0.00016028,2]
[359009554,1745628638074,-545.0,0.00016105,2]
[359009555,1745628638085,-2247.0,0.00016105,2]
[359009556,1745628638096,-706.0,0.00016105,2]
[359009557,1745628638105,-150.0,0.00016105,2]
[359009559,1745628638115,-177.095,0.00016164,2]
[359009561,1745628638124,-500.0,0.00016329,2]
[359009563,1745628638134,-153.0,0.000164,2]
[359009565,1745628638143,-151.0,0.00016428,2]
[359009567,1745628638152,-207.4,0.00016428,2]
[359009569,1745628638162,-1874.05,0.00016428,3]
[359009571,1745628638172,-937.03,0.00016428,3]
[359009573,1745628638181,-468.51,0.00016428,3]
[359009575,1745628638192,-234.26,0.00016428,3]
[359009577,1745628638202,-702.79,0.00016428,3]
[359009580,1745628638213,-500.0,0.00016438,2]
[359009582,1745628638224,-500.0,0.00016438,2]
[359009584,1745628638233,-538.29,0.00016438,2]
[359009586,1745628638243,-316.59984342,0.00016438,2]
[359009588,1745628638252,-583.23,0.00016438,2]
[359009590,1745628638262,-500.0,0.00016438,2]
[359009592,1745628638272,-500.0,0.00016438,2]
[359009593,1745628638281,-253.60403723,0.00016438,2]
[359009595,1745628638291,-500.0,0.00016438,2]
[359009598,1745628638300,-500.0,0.00016438,2]
[359009600,1745628638309,-500.0,0.00016438,2]
[359009601,1745628638319,-500.0,0.00016438,2]
[359009603,1745628638328,-500.0,0.00016438,2]
[359009605,1745628638338,-500.0,0.00016438,2]
[359009607,1745628638347,-500.0,0.00016438,2]
[359009610,1745628638358,-500.0,0.00016438,2]
[359009611,1745628638367,-500.0,0.00016438,2]
[359009613,1745628638376,-615.03680398,0.00016438,2]
[359009615,1745628638387,-500.0,0.00016438,2]
[359009617,1745628638396,-500.0,0.00016438,2]
[359009619,1745628638405,-500.0,0.00016438,2]
[359009621,1745628638416,-500.0,0.00016438,2]
[359009623,1745628638429,-500.0,0.00016438,2]
[359009625,1745628638439,-500.0,0.00016438,2]
[359009628,1745628638450,-500.0,0.00016438,2]
[359009629,1745628638460,-500.0,0.00016438,2]
[359009632,1745628638471,-500.0,0.00016438,2]
[359009634,1745628638480,-500.0,0.00016438,2]
[359009636,1745628638499,-575.90974088,0.00016438,2]
[359009638,1745628638510,-500.0,0.00016438,2]
[359009640,1745628638521,-463.33277073,0.00016438,2]
[359009641,1745628638530,-500.0,0.00016438,2]
[359009643,1745628638539,-181.96451788,0.00016438,2]
[359009646,1745628638549,-500.0,0.00016438,2]
[359009647,1745628638558,-500.0,0.00016438,2]
[359009649,1745628638567,-500.0,0.00016438,2]
[359009650,1745628638576,-500.0,0.00016438,2]
[359009651,1745628638586,-500.0,0.00016438,2]
[359009652,1745628638595,-500.0,0.00016438,2]
[359009653,1745628638604,-500.0,0.00016438,2]
[359009654,1745628638614,-500.0,0.00016438,2]
[359009655,1745628638624,-500.0,0.00016438,2]
[359009656,1745628638633,-500.0,0.00016438,2]
[359009657,1745628638642,-500.0,0.00016438,2]
[359009658,1745628638652,-500.0,0.00016438,2]
[359009659,1745628638662,-500.0,0.00016438,2]
[359009660,1745628638673,-569.74,0.00016438,2]
[359009661,1745628638683,-500.0,0.00016438,2]
[359009662,1745628638692,-500.0,0.00016438,2]
[359009663,1745628638702,-500.0,0.00016438,2]
[359009664,1745628638724,-1005.99,0.00016438,2]
[359009665,1745628638735,-500.0,0.00016438,2]
[359009666,1745628638745,-500.0,0.00016438,2]
[359009667,1745628638754,-500.0,0.00016438,2]
[359009668,1745628638764,-500.0,0.00016438,2]
[359009669,1745628638774,-500.0,0.00016438,2]
[359009670,1745628638783,-500.0,0.00016438,2]
[359009671,1745628638793,-826.51,0.00016438,2]
[359009672,1745628638803,-500.0,0.00016438,2]
[359009673,1745628638813,-508.75261294,0.00016438,2]
[359009674,1745628638823,-500.0,0.00016438,2]
[359009675,1745628638832,-435.97644606,0.00016438,2]
[359009676,1745628638849,-64.02355394,0.00016438,2]
[359009677,1745628638860,-500.0,0.00016438,2]
[359009678,1745628638870,-500.0,0.00016438,2]
[359009679,1745628638879,-500.0,0.00016438,2]
[359009680,1745628638889,-500.0,0.00016438,2]
[359009681,1745628638901,-500.0,0.00016438,2]
[359009682,1745628638912,-500.0,0.00016438,2]
[359009683,1745628638921,-425.82364387,0.00016438,2]
[359009696,1745628640425,-0.04982082,0.00016438,2]
[359009697,1745628640438,-74.12653531,0.00016438,2]
[359009698,1745628640447,-496.85941012,0.00016438,2]
[359009699,1745628640459,-26.71270414,0.00016438,2]
[359009700,1745628640467,-500.0,0.00016438,2]
[359009701,1745628640477,-288.51791087,0.00016438,2]
[359009702,1745628640489,-211.48208913,0.00016438,2]
[359009703,1745628640498,-500.0,0.00016438,2]
[359009704,1745628640508,-500.0,0.00016438,2]
[359009705,1745628640518,-140.43986077,0.00016438,2]
[359009715,1745628642812,-359.56013923,0.00016438,2]
[359009717,1745628642822,-500.0,0.00016438,2]
[359009718,1745628642832,-384.02686897,0.00016438,2]
[359009719,1745628642844,-115.97313103,0.00016438,2]
[359009720,1745628642855,-500.0,0.00016438,2]
[359009721,1745628642865,-500.0,0.00016438,2]
[359009722,1745628642875,-500.0,0.00016438,2]
[359009723,1745628642884,-500.0,0.00016438,2]
[359009724,1745628642894,-1381.5,0.00016438,2]
[359009725,1745628642906,-500.0,0.00016438,2]
[359009726,1745628642916,-500.0,0.00016438,2]
[359009728,1745628642926,-1062.43,0.00016438,2]
[359009730,1745628642935,-500.0,0.00016438,2]
[359009732,1745628642945,-500.0,0.00016438,2]
[359009733,1745628642954,-941.03,0.00016438,2]
[359009735,1745628642963,-500.0,0.00016438,2]
[359009736,1745628642973,-500.0,0.00016438,2]
[359009737,1745628642982,-500.0,0.00016438,2]
[359009739,1745628642991,-500.0,0.00016438,2]
[359009741,1745628643001,-500.0,0.00016438,2]
[359009743,1745628643010,-500.0,0.00016438,2]
[359009745,1745628643019,-694.56,0.00016438,2]
[359009747,1745628643028,-504.5879608,0.00016438,2]
[359009749,1745628643038,-500.0,0.00016438,2]
[359009750,1745628643047,-500.0,0.00016438,2]
[359009751,1745628643057,-500.0,0.00016438,2]
[359009752,1745628643067,-500.0,0.00016438,2]
[359009753,1745628643076,-500.0,0.00016438,2]
[359009754,1745628643086,-500.0,0.00016438,2]
[359009755,1745628643095,-500.0,0.00016438,2]
[359009756,1745628643105,-500.0,0.00016438,2]
[359009757,1745628643114,-500.0,0.00016438,2]
[359009758,1745628643124,-500.0,0.00016438,2]
[359009759,1745628643133,-500.0,0.00016438,2]
[359009760,1745628643144,-500.0,0.00016438,2]
[359009761,1745628643153,-500.0,0.00016438,2]
[359009762,1745628643162,-500.0,0.00016438,2]
[359009763,1745628643172,-686.09,0.00016438,2]
[359009764,1745628643182,-500.0,0.00016438,2]
[359009765,1745628643191,-500.0,0.00016438,2]
[359009766,1745628643201,-500.0,0.00016438,2]
[359009767,1745628643210,-500.0,0.00016438,2]
[359009768,1745628643220,-500.0,0.00016438,2]
[359009769,1745628643229,-500.0,0.00016438,2]
[359009770,1745628643239,-500.0,0.00016438,2]
[359009771,1745628643249,-559.32128182,0.00016438,2]
[359009772,1745628643259,-500.0,0.00016438,2]
[359009773,1745628643268,-141.62499614,0.00016438,2]
[359009774,1745628643290,-344.95327808,0.00016438,2]
[359009784,1745628645748,-150.0,0.00016105,2]
[359009785,1745628645758,-150.0,0.00016105,2]
[359009786,1745628645768,-13.42172578,0.00016438,2]
[359009787,1745628645778,-6881.44,0.00016438,2]
[359009788,1745628645787,-500.0,0.00016438,2]
[359009789,1745628645797,-500.0,0.00016438,2]
[359009790,1745628645807,-5658.59,0.00016438,2]
[359009791,1745628645816,-500.0,0.00016438,2]
[359009792,1745628645826,-500.0,0.00016438,2]
[359009793,1745628645835,-1154.75,0.00016438,2]
[359009794,1745628645845,-631.1,0.00016438,2]
[359009795,1745628645854,-500.0,0.00016438,2]
[359009796,1745628645864,-500.0,0.00016438,2]
[359009797,1745628645873,-500.0,0.00016438,2]
[359009798,1745628645883,-500.0,0.00016438,2]
[359009799,1745628645892,-500.0,0.00016438,2]
[359009800,1745628645906,-500.0,0.00016438,2]
[359009801,1745628645915,-500.0,0.00016438,2]
[359009802,1745628645925,-500.0,0.00016438,2]
[359009803,1745628645934,-500.0,0.00016438,2]
[359009804,1745628645945,-500.0,0.00016438,2]
[359009805,1745628645954,-500.0,0.00016438,2]
[359009806,1745628645963,-500.0,0.00016438,2]
[359009807,1745628645973,-500.0,0.00016438,2]
[359009808,1745628645983,-502.88,0.00016438,2]
[359009809,1745628645992,-500.0,0.00016438,2]
[359009810,1745628646002,-500.0,0.00016438,2]
[359009811,1745628646011,-535.65549325,0.00016438,2]
[359009812,1745628646021,-500.0,0.00016438,2]
[359009813,1745628646030,-500.0,0.00016438,2]
[359009814,1745628646039,-500.0,0.00016438,2]
[359009815,1745628646050,-500.0,0.00016438,2]
[359009816,1745628646059,-253.17692719,0.00016438,2]
[359009817,1745628646068,-500.0,0.00016438,2]
[359009818,1745628646078,-500.0,0.00016438,2]
[359009819,1745628646087,-239.19065671,0.00016438,2]
[359009820,1745628646097,-500.0,0.00016438,2]
[359009821,1745628646107,-1374.83,0.00016438,2]
[359009822,1745628646117,-1843.28,0.00016438,2]
[359009823,1745628646126,-500.0,0.00016438,2]
[359009824,1745628646136,-500.0,0.00016438,2]
[359009825,1745628646145,-500.0,0.00016438,2]
[359009826,1745628646154,-500.0,0.00016438,2]
[359009827,1745628646165,-500.0,0.00016438,2]
[359009828,1745628646176,-500.0,0.00016438,2]
[359009829,1745628646186,-1145.26,0.00016438,2]
[359009830,1745628646196,-500.0,0.00016438,2]
[359009831,1745628646205,-500.0,0.00016438,2]
[359009832,1745628646214,-500.0,0.00016438,2]
[359009833,1745628646224,-500.0,0.00016438,2]
[359009834,1745628646234,-500.0,0.00016438,2]
[359009835,1745628646243,-500.0,0.00016438,2]
[359009836,1745628646253,-500.0,0.00016438,2]
[359009837,1745628646263,-500.0,0.00016438,2]
[359009838,1745628646272,-500.0,0.00016438,2]
[359009839,1745628646282,-500.0,0.00016438,2]
[359009840,1745628646292,-61.87804732,0.00016438,2]
[359009841,1745628646304,-438.12195268,0.00016438,2]
[359009842,1745628646314,-271.70485508,0.00016438,2]
[359009843,1745628646325,-228.29514492,0.00016438,2]
[359009844,1745628646334,-500.0,0.00016438,2]
[359009845,1745628646344,-181.34850482,0.00016438,2]
[359009846,1745628683924,-286.55304848,0.00014098,2]
[359009847,1745628691036,-107.82658757,0.00014098,2]
[359009848,1745628691059,-44.17341243,0.00014098,2]
[359009849,1745628698695,-170.75564357,0.00014098,2]
[359009850,1745628704045,-285.070944,0.00014098,2]
[359009851,1745628704950,214.929056,0.00014098,2]
[359009852,1745628714029,1744.9431842,0.00027,30]
[359009853,1745628793882,-300.0,0.00014096,2]
[359009854,1745628793908,-193.2970498,0.00014097,2]
[359009855,1745628793935,-512.12112747,0.00014097,2]
[359009856,1745628793968,-500.0,0.00014097,2]
[359009857,1745628793998,-304.58182273,0.00014097,2]
[359009860,1745629007392,470.0,0.00027,30]
[359009868,1745629284572,3986.63,0.00027,30]
[359009872,1745629575946,250.0,0.00013991,2]
[359009873,1745629595922,199.79276494,0.0001399,2]
[359009875,1745629633124,-300.0,0.00014089,2]
[359009876,1745629633145,-500.0,0.0001409,2]
[359009877,1745629633174,-500.0,0.0001409,2]
[359009878,1745629633202,-500.0,0.0001409,2]
[359009879,1745629633228,-261.14294818,0.0001409,2]
[359009880,1745629638109,-238.85705182,0.0001409,2]
[359009881,1745629638137,-214.34237598,0.0001409,2]
[359009906,1745629832068,-300.0,0.00014088,2]
[359009907,1745629832078,-500.0,0.00014089,2]
[359009908,1745629832088,-500.0,0.00014089,2]
[359009909,1745629832098,-500.0,0.00014089,2]
[359009910,1745629832107,-500.0,0.00014089,2]
[359009911,1745629832117,-500.0,0.00014089,2]
[359009912,1745629832126,-500.0,0.00014089,2]
[359009913,1745629832135,-285.5384605,0.00014089,2]
[359009914,1745629832197,-214.4615395,0.00014089,2]
[359009915,1745629832206,-500.0,0.00014089,2]
[359009916,1745629832216,-500.0,0.00014089,2]
[359009917,1745629832225,-500.0,0.00014089,2]
[359009918,1745629832235,-500.0,0.00014089,2]
[359009919,1745629832245,-500.0,0.00014089,2]
[359009920,1745629832255,-500.0,0.00014089,2]
[359009921,1745629832266,-465.69180159,0.00014089,2]
[359009939,1745629837971,-34.30819841,0.00014089,2]
[359009941,1745629837981,-16.04729357,0.00014089,2]
[359009944,1745629838002,-483.95270643,0.00014089,2]
[359009946,1745629838011,-65.30518316,0.00014089,2]
[359009948,1745629838023,-434.69481684,0.00014089,2]
[359009950,1745629838033,-500.0,0.00014089,2]
[359009952,1745629838042,-352.93350184,0.00014089,2]
[359009955,1745629838054,-147.06649816,0.00014089,2]
[359009957,1745629838064,-597.49404673,0.00014089,2]
[359009959,1745629838073,-500.0,0.00014089,2]
[359009961,1745629838083,-500.0,0.00014089,2]
[359009963,1745629838092,-500.0,0.00014089,2]
[359009965,1745629838101,-500.0,0.00014089,2]
[359009967,1745629838111,-500.0,0.00014089,2]
[359009969,1745629838121,-500.0,0.00014089,2]
[359009971,1745629838131,-500.0,0.00014089,2]
[359009973,1745629838141,-500.0,0.00014089,2]
[359009975,1745629838151,-500.0,0.00014089,2]
[359009977,1745629838160,-500.0,0.00014089,2]
[359009978,1745629838170,-500.0,0.00014089,2]
[359009980,1745629838180,-500.0,0.00014089,2]
[359009982,1745629838190,-500.0,0.00014089,2]
[359009984,1745629838199,-500.0,0.00014089,2]
[359009986,1745629838209,-500.0,0.00014089,2]
[359009988,1745629838218,-250.0,0.00014089,2]
[359009990,1745629838228,-1350.4806051,0.00014648,2]
[359009992,1745629838238,-196.9427995,0.00014826,2]
[359009994,1745629838247,-500.0,0.00014946,2]
[359009996,1745629838258,-234.76743472,0.00014946,2]
[359009998,1745629838267,-500.0,0.00014946,2]
[359010000,1745629838277,-205.98655303,0.00014946,2]
[359010002,1745629838287,-500.0,0.00014946,2]
[359010004,1745629838297,-16.44127371,0.00014946,2]
[359010006,1745629838309,-188.26939463,0.00014946,2]
[359010008,1745629838319,-5897.1638051,0.00014947,2]
[359010010,1745629838329,-182.652554,0.0001523,2]
[359010012,1745629838339,-182.652554,0.00015249,2]
[359010014,1745629838350,-182.652554,0.00015268,2]
[359010016,1745629838361,-182.652554,0.00015287,2]
[359010018,1745629838370,-182.652554,0.00015306,2]
[359010020,1745629838382,-420.0,0.00015432,2]
[359010022,1745629838393,-1495.90707644,0.000159,2]
[359010024,1745629838402,-473.75442602,0.00015964,2]
[359010026,1745629838412,-150.0,0.00016105,2]
[359010028,1745629838423,-218.421,0.00016105,2]
[359010030,1745629838432,-706.0,0.00016105,2]
[359010031,1745629838443,-110.22167933,0.00016105,2]
[359010034,1745629838455,-630.00346957,0.00016105,2]
[359010036,1745629838469,-1506.7748511,0.00016105,2]
[359010038,1745629838479,-403.0,0.00016105,2]
[359010040,1745629838489,-403.0,0.00016105,2]
[359010042,1745629838499,-457.88257341,0.00016164,2]
[359010044,1745629838510,-153.0,0.000162,2]
[359010045,1745629838519,-239.5875659,0.00016365,2]
[359010047,1745629838529,-160.0,0.00016392,2]
[359010049,1745629838539,-160.0,0.00016392,2]
[359010051,1745629838549,-420.98395174,0.00016392,2]
[359010053,1745629838559,-160.0,0.00016392,2]
[359010055,1745629838569,-313.10658385,0.00016392,2]
[359010057,1745629838579,-160.0,0.00016394,2]
[359010059,1745629838590,-12579.26882624,0.00016394,2]
[359010061,1745629838600,-177.095,0.00016422,2]
[359010063,1745629838610,-151.0,0.00016428,2]
[359010064,1745629838619,-207.4,0.00016428,2]
[359010066,1745629838629,-1171.28,0.00016428,3]
[359010068,1745629838639,-585.64,0.00016428,3]
[359010070,1745629838649,-292.82,0.00016428,3]
[359010072,1745629838659,-878.48,0.00016428,3]
[359010074,1745629838668,-371.62141777,0.00016438,2]
[359010076,1745629838678,-500.0,0.00016438,2]
[359010078,1745629838687,-500.0,0.00016438,2]
[359010080,1745629838698,-500.0,0.00016438,2]
[359010082,1745629838707,-500.0,0.00016438,2]
[359010083,1745629838717,-500.0,0.00016438,2]
[359010085,1745629838727,-500.0,0.00016438,2]
[359010087,1745629838737,-500.0,0.00016438,2]
[359010089,1745629838746,-500.0,0.00016438,2]
[359010091,1745629838757,-500.0,0.00016438,2]
[359010093,1745629838767,-500.0,0.00016438,2]
[359010095,1745629838777,-500.0,0.00016438,2]
[359010097,1745629838787,-500.0,0.00016438,2]
[359010098,1745629838797,-500.0,0.00016438,2]
[359010099,1745629838807,-500.0,0.00016438,2]
[359010100,1745629838816,-500.0,0.00016438,2]
[359010101,1745629838826,-500.0,0.00016438,2]
[359010102,1745629838836,-500.0,0.00016438,2]
[359010103,1745629838846,-500.0,0.00016438,2]
[359010104,1745629838857,-500.0,0.00016438,2]
[359010105,1745629838867,-500.0,0.00016438,2]
[359010106,1745629838877,-500.0,0.00016438,2]
[359010107,1745629838886,-500.0,0.00016438,2]
[359010108,1745629838896,-500.0,0.00016438,2]
[359010109,1745629838905,-500.0,0.00016438,2]
[359010110,1745629838914,-500.0,0.00016438,2]
[359010111,1745629838924,-500.0,0.00016438,2]
[359010112,1745629838934,-500.0,0.00016438,2]
[359010113,1745629838944,-500.0,0.00016438,2]
[359010114,1745629838953,-500.0,0.00016438,2]
[359010115,1745629838964,-500.0,0.00016438,2]
[359010116,1745629838974,-500.0,0.00016438,2]
[359010117,1745629838985,-500.0,0.00016438,2]
[359010118,1745629838995,-500.0,0.00016438,2]
[359010119,1745629839005,-500.0,0.00016438,2]
[359010120,1745629839015,-500.0,0.00016438,2]
[359010121,1745629839024,-500.0,0.00016438,2]
[359010122,1745629839033,-500.0,0.00016438,2]
[359010123,1745629839043,-500.0,0.00016438,2]
[359010124,1745629839055,-500.0,0.00016438,2]
[359010125,1745629839067,-500.0,0.00016438,2]
[359010126,1745629839077,-500.0,0.00016438,2]
[359010127,1745629839087,-556.01,0.00016438,2]
[359010128,1745629839097,-500.0,0.00016438,2]
[359010129,1745629839106,-500.0,0.00016438,2]
[359010130,1745629839116,-500.0,0.00016438,2]
[359010131,1745629839126,-500.0,0.00016438,2]
[359010132,1745629839135,-500.0,0.00016438,2]
[359010133,1745629839145,-500.0,0.00016438,2]
[359010134,1745629839154,-500.0,0.00016438,2]
[359010135,1745629839164,-500.0,0.00016438,2]
[359010136,1745629839173,-500.0,0.00016438,2]
[359010137,1745629839182,-279.79235512,0.00016438,2]
[359010138,1745629839195,-684.27764488,0.00016438,2]
[359010139,1745629839204,-438.29,0.00016438,2]
[359010140,1745629839214,-500.0,0.00016438,2]
[359010141,1745629839223,-500.0,0.00016438,2]
[359010142,1745629839235,-500.0,0.00016438,2]
[359010143,1745629839246,-36.81563162,0.00016438,2]
[359010157,1745629840199,-840.21051354,0.00016392,2]
[359010158,1745629840209,-160.0,0.00016392,2]
[359010159,1745629840220,-463.18436838,0.00016438,2]
[359010160,1745629840230,-500.0,0.00016438,2]
[359010161,1745629840240,-500.0,0.00016438,2]
[359010162,1745629840250,-512.71032942,0.00016438,2]
[359010163,1745629840260,-500.0,0.00016438,2]
[359010164,1745629840270,-500.0,0.00016438,2]
[359010165,1745629840280,-502.64389879,0.00016438,2]
[359010166,1745629840290,-792.07,0.00016438,2]
[359010167,1745629840300,-500.0,0.00016438,2]
[359010168,1745629840313,-500.0,0.00016438,2]
[359010169,1745629840322,-500.0,0.00016438,2]
[359010170,1745629840334,-501.1023988,0.00016438,2]
[359010171,1745629840345,-500.0,0.00016438,2]
[359010172,1745629840355,-500.0,0.00016438,2]
[359010173,1745629840367,-500.0,0.00016438,2]
[359010174,1745629840378,-582.40178941,0.00016438,2]
[359010175,1745629840388,-500.0,0.00016438,2]
[359010176,1745629840399,-500.0,0.00016438,2]
[359010177,1745629840414,-500.0,0.00016438,2]
[359010178,1745629840424,-500.0,0.00016438,2]
[359010179,1745629840435,-500.0,0.00016438,2]
[359010180,1745629840444,-500.0,0.00016438,2]
[359010181,1745629840454,-500.0,0.00016438,2]
[359010182,1745629840463,-500.0,0.00016438,2]
[359010183,1745629840473,-500.0,0.00016438,2]
[359010184,1745629840483,-387.38420341,0.00016438,2]
[359010185,1745629840494,-500.0,0.00016438,2]
[359010186,1745629840505,-500.0,0.00016438,2]
[359010187,1745629840515,-500.0,0.00016438,2]
[359010188,1745629840524,-500.0,0.00016438,2]
[359010189,1745629840536,-500.0,0.00016438,2]
[359010190,1745629840546,-500.0,0.00016438,2]
[359010191,1745629840555,-389.46856044,0.00016438,2]
[359010192,1745629840565,-500.0,0.00016438,2]
[359010193,1745629840575,-500.0,0.00016438,2]
[359010194,1745629840584,-511.11888775,0.00016438,2]
[359010195,1745629840594,-500.0,0.00016438,2]
[359010196,1745629840603,-500.0,0.00016438,2]
[359010197,1745629840613,-500.0,0.00016438,2]
[359010198,1745629840622,-1323.94,0.00016438,2]
[359010199,1745629840632,-500.0,0.00016438,2]
[359010200,1745629840642,-500.0,0.00016438,2]
[359010201,1745629840653,-275.05467885,0.00016438,2]
[359010202,1745629840663,-901.82,0.00016438,2]
[359010203,1745629840673,-500.0,0.00016438,2]
[359010204,1745629840682,-500.0,0.00016438,2]
[359010205,1745629840691,-500.0,0.00016438,2]
[359010206,1745629840701,-3188.33,0.00016438,2]
[359010207,1745629840711,-500.0,0.00016438,2]
[359010208,1745629840722,-500.0,0.00016438,2]
[359010209,1745629840733,-500.0,0.00016438,2]
[359010210,1745629840745,-1018.16,0.00016438,2]
[359010211,1745629840756,-500.0,0.00016438,2]
[359010212,1745629840765,-500.0,0.00016438,2]
[359010213,1745629840775,-500.0,0.00016438,2]
[359010214,1745629840784,-500.0,0.00016438,2]
[359010215,1745629840794,-500.0,0.00016438,2]
[359010216,1745629840804,-500.0,0.00016438,2]
[359010217,1745629840813,-665.62,0.00016438,2]
[359010218,1745629840822,-500.0,0.00016438,2]
[359010219,1745629840832,-500.0,0.00016438,2]
[359010220,1745629840841,-500.0,0.00016438,2]
[359010221,1745629840851,-500.0,0.00016438,2]
[359010222,1745629840860,-500.0,0.00016438,2]
[359010223,1745629840870,-500.0,0.00016438,2]
[359010224,1745629840880,-500.0,0.00016438,2]
[359010225,1745629840890,-1355.7,0.00016438,2]
[359010226,1745629840900,-500.0,0.00016438,2]
[359010227,1745629840911,-500.0,0.00016438,2]
[359010228,1745629840922,-500.0,0.00016438,2]
[359010229,1745629840932,-500.0,0.00016438,2]
[359010230,1745629840943,-500.0,0.00016438,2]
[359010231,1745629840953,-500.0,0.00016438,2]
[359010232,1745629840963,-1106.64,0.00016438,2]
[359010233,1745629840972,-6793.87,0.00016438,2]
[359010234,1745629840983,-604.8,0.00016438,2]
[359010235,1745629840992,-678.34,0.00016438,2]
[359010236,1745629841003,-500.0,0.00016438,2]
[359010237,1745629841013,-500.0,0.00016438,2]
[359010238,1745629841023,-500.0,0.00016438,2]
[359010239,1745629841034,-500.0,0.00016438,2]
[359010240,1745629841046,-500.0,0.00016438,2]
[359010241,1745629841056,-500.0,0.00016438,2]
[359010242,1745629841066,-500.0,0.00016438,2]
[359010243,1745629841078,-500.0,0.00016438,2]
[359010244,1745629841088,-264.37191436,0.00016438,2]
[359010245,1745629841100,-500.0,0.00016438,2]
[359010246,1745629841111,-500.0,0.00016438,2]
[359010247,1745629841123,-530.02380643,0.00016438,2]
[359010248,1745629841134,-500.0,0.00016438,2]
[359010249,1745629841145,-500.0,0.00016438,2]
[359010250,1745629841156,-500.0,0.00016438,2]
[359010251,1745629841165,-1766.48,0.00016438,2]
[359010252,1745629841175,-1317.55,0.00016438,2]
[359010253,1745629841185,-986.81,0.00016438,2]
[359010254,1745629841194,-500.0,0.00016438,2]
[359010255,1745629841204,-500.0,0.00016438,2]
[359010256,1745629841213,-500.0,0.00016438,2]
[359010257,1745629841223,-348.73481405,0.00016438,2]
[359010258,1745629841233,-1097.54,0.00016438,2]
[359010259,1745629841243,-500.0,0.00016438,2]
[359010260,1745629841254,-500.0,0.00016438,2]
[359010261,1745629841264,-500.0,0.00016438,2]
[359010262,1745629841275,-500.0,0.00016438,2]
[359010263,1745629841284,-500.0,0.00016438,2]
[359010264,1745629841294,-500.0,0.00016438,2]
[359010265,1745629841303,-500.0,0.00016438,2]
[359010266,1745629841313,-500.0,0.00016438,2]